fUSD/lending_fUSD_20260221
["ID","MTS","AMOUNT","RATE_DAILY","PERIOD"]
[406275666,1771682888000,1924.05300537,0.00014338,2]
[406275667,1771682888038,1924.05300537,0.00014338,2]
[406275668,1771682888072,1924.05300537,0.00014338,2]
[406275669,1771682888310,1924.05300537,0.00014338,2]
[406275670,1771682888357,793.01428776,0.00014338,2]
[406275671,1771682888384,1131.03871761,0.00014338,2]
[406275672,1771682888466,1924.05300537,0.00014338,2]
[406275673,1771682888524,1924.05300537,0.00014338,2]
[406275674,1771682888582,1924.05300537,0.00014338,2]
[406275675,1771682888630,1924.05300537,0.00014338,2]
[406275676,1771682888686,1172.75926091,0.00014338,2]
[406275677,1771682888713,751.29374446,0.00014338,2]
[406275678,1771682888746,1924.05300537,0.00014338,2]
[406275679,1771682888786,1924.05300537,0.00014338,2]
[406275680,1771682888852,1924.05300537,0.00014338,2]
[406275681,1771682888902,1924.05300537,0.00014338,2]
[406275682,1771682889958,1000.0,0.00014338,2]
[406275683,1771682905480,1442.21094423,0.00014239,2]
[406275684,1771682921374,3488.41108788,0.00014239,2]
[406275685,1771682941471,300.0,0.00014338,2]
[406275686,1771682941960,150.0,0.00014338,2]
[406275687,1771682956636,776.31040478,0.00014338,2]
[406275688,1771682958148,1045.51171664,0.00014338,5]
[406275689,1771682977864,300.0,0.000136,4]
[406275690,1771682979951,600.0,0.000137,5]
[406275691,1771682982074,897.56584647,0.000138,5]
[406275692,1771682982096,2.43415353,0.000138,5]
[406275693,1771682984221,1300.0,0.000139,5]
[406275694,1771682987212,8697.57584647,0.00014315,2]
[406275695,1771682987234,4613.53415353,0.00014315,2]
[406275696,1771682993234,2238.49271131,0.00014239,2]
[406275697,1771683001259,300.0,0.00014338,2]
[406275698,1771683001359,300.0,0.00014338,2]
[406275699,1771683001386,1200.0,0.00014338,2]
[406275700,1771683002069,369.3393115,0.00014239,2]
[406275701,1771683005652,978.64382366,0.00014329,2]
[406275702,1771683005677,6336.45617634,0.00014329,2]
[406275703,1771683005850,3663.55382366,0.00014329,2]
[406275704,1771683005874,3651.54617634,0.00014329,2]
[406275705,1771683007990,155.864,0.00014338,2]
[406275706,1771683010623,361.32669013,0.00014329,2]
[406275707,1771683031953,-220.0,0.00014339,2]
[406275708,1771683031963,-129.0701965,0.00014339,2]
[406275710,1771683031977,-30.9298035,0.00014339,2]
[406275712,1771683031987,-150.0,0.00014339,2]
[406275714,1771683031999,-155.9129965,0.00014339,2]
[406275715,1771683032011,-2349.93978558,0.00014339,2]
[406275717,1771683032022,-2369.22227224,0.00014339,2]
[406275719,1771683032033,-457.76704283,0.00014339,2]
[406275720,1771683032044,-1848.75756851,0.00014339,2]
[406275721,1771683032067,-56440.17459956,0.00014339,2]
[406275722,1771683032078,-8058.96891757,0.00014339,2]
[406275723,1771683032089,-6939.92738706,0.00014339,2]
[406275724,1771683032100,-953.31026791,0.00014339,2]
[406275725,1771683032111,-310.31,0.00014339,2]
[406275727,1771683032328,-1543.57054066,0.00014339,2]
[406275728,1771683032340,-34259.58106784,0.00014339,2]
[406275729,1771683032351,-3985.44740641,0.00014339,2]
[406275732,1771683038101,-66177.2914828,0.00014339,2]
[406275733,1771683038162,-903.93718342,0.00014339,2]
[406275734,1771683038174,-308.5174995,0.00014339,2]
[406275735,1771683038185,-314.20078661,0.00014339,2]
[406275736,1771683038220,-3258730.13728699,0.00014339,2]
[406275737,1771683038230,-65994.3166,0.00014339,2]
[406275738,1771683038240,-3503.8584,0.00014339,2]
[406275739,1771683038250,-2097.4317,0.00014339,2]
[406275740,1771683038259,-268.0,0.00014339,2]
[406275741,1771683038269,-1000.0,0.0001434,2]
[406275742,1771683038278,-2500.0,0.0001434,2]
[406275743,1771683038287,-169.88351399,0.00014387,2]
[406275744,1771683038299,-382.3100766,0.00014387,2]
[406275745,1771683038309,-35950.64728983,0.00014387,2]
[406275746,1771683038318,-4809.0,0.00014411,2]
[406275747,1771683038328,-151.0,0.00014431,2]
[406275748,1771683038338,-151.0,0.00014431,2]
[406275749,1771683038347,-151.0,0.00014431,2]
[406275750,1771683038357,-151.0,0.00014431,2]
[406275751,1771683038367,-151.0,0.00014431,2]
[406275752,1771683038376,-151.0,0.00014431,2]
[406275753,1771683038387,-151.0,0.00014431,2]
[406275754,1771683038396,-151.0,0.00014431,2]
[406275755,1771683038405,-151.0,0.00014431,2]
[406275756,1771683038415,-151.0,0.00014431,2]
[406275757,1771683038425,-151.0,0.00014431,2]
[406275758,1771683038435,-151.0,0.00014431,2]
[406275759,1771683038444,-151.0,0.00014431,2]
[406275760,1771683038453,-151.0,0.00014431,2]
[406275761,1771683038463,-151.0,0.00014431,2]
[406275762,1771683038472,-151.0,0.00014431,2]
[406275763,1771683038482,-191.79984712,0.00014431,2]
[406275764,1771683038491,-166.66,0.00014487,2]
[406275765,1771683038501,-150.0,0.0001453,2]
[406275766,1771683038511,-2186.476,0.00014538,2]
[406275767,1771683038520,-190.594,0.00014538,2]
[406275768,1771683038530,-8643.18,0.0001457,2]
[406275769,1771683038539,-4451.1035,0.00014603,2]
[406275770,1771683038549,-361.32669013,0.00014636,2]
[406275771,1771683038558,-500.0,0.00014638,2]
[406275772,1771683038570,-500.0,0.00014638,2]
[406275773,1771683038579,-26359.32756776,0.00014646,2]
[406275774,1771683038589,-35950.64728978,0.00014777,2]
[406275775,1771683038599,-166.66,0.00014779,2]
[406275776,1771683038613,-164.94,0.0001494,2]
[406275777,1771683038622,-26359.32756776,0.00015053,2]
[406275778,1771683038632,-155.0,0.00015055,2]
[406275779,1771683038641,-166.66,0.00015072,2]
[406275780,1771683038651,-35950.64728978,0.00015168,2]
[406275781,1771683038661,-500.0,0.00015173,2]
[406275782,1771683038670,-500.0,0.00015173,2]
[406275783,1771683038679,-500.0,0.00015173,2]
[406275784,1771683038688,-500.0,0.00015173,2]
[406275785,1771683038700,-250.0,0.00015325,2]
[406275786,1771683038710,-166.66,0.00015365,2]
[406275787,1771683038719,-255.0,0.00015456,2]
[406275788,1771683038729,-26359.32756776,0.00015459,2]
[406275789,1771683038738,-35950.64728978,0.00015558,2]
[406275790,1771683038747,-900.0,0.0001563,2]
[406275791,1771683038756,-420.0,0.00015703,2]
[406275792,1771683038766,-1000.0,0.00015721,2]
[406275793,1771683038775,-1000.0,0.00015721,2]
[406275794,1771683038785,-350.90980006,0.00015721,2]
[406275795,1771683038794,-155.0,0.00015772,2]
[406275796,1771683038803,-1680.0,0.00015772,2]
[406275797,1771683038813,-275.20053403,0.00015773,2]
[406275798,1771683038823,-454.74,0.00015824,2]
[406275799,1771683038833,-220.0,0.00015857,3]
[406275800,1771683038842,-26359.32756776,0.00015866,2]
[406275801,1771683038851,-6100.0,0.000159,5]
[406275802,1771683038861,-1600.0,0.000159,5]
[406275803,1771683038870,-35950.64728978,0.00015948,2]
[406275804,1771683038880,-519.0,0.00016,2]
[406275805,1771683038889,-234.07,0.0001604,2]
[406275806,1771683038898,-164.94,0.00016089,2]
[406275807,1771683038907,-382.3100766,0.00016262,2]
[406275808,1771683038917,-1500.0,0.00016268,2]
[406275809,1771683038926,-1500.0,0.00016268,2]
[406275810,1771683038937,-26359.32756776,0.00016273,2]
[406275811,1771683038947,-1000.0,0.00016303,2]
[406275812,1771683038956,-35950.64728978,0.00016339,2]
[406275813,1771683038965,-500.0,0.0001647,2]
[406275814,1771683038974,-264.04644025,0.0001647,2]
[406275815,1771683038984,-500.0,0.0001647,2]
[406275816,1771683038994,-500.0,0.0001647,2]
[406275817,1771683039006,-500.0,0.0001647,2]
[406275818,1771683039015,-500.0,0.0001647,2]
[406275819,1771683039025,-500.0,0.0001647,2]
[406275820,1771683039035,-500.0,0.0001647,2]
[406275821,1771683039046,-500.0,0.0001647,2]
[406275822,1771683039055,-500.0,0.0001647,2]
[406275823,1771683039064,-500.0,0.0001647,2]
[406275824,1771683039075,-500.0,0.0001647,2]
[406275825,1771683039087,-693.3919763,0.0001647,2]
[406275826,1771683039096,-174.61919141,0.0001647,2]
[406275827,1771683039105,-589.05594785,0.00016525,2]
[406275828,1771683039118,-129.99153157,0.00016525,2]
[406275829,1771683039128,-1000.2,0.00016541,2]
[406275830,1771683039138,-745.65223616,0.0001658,2]
[406275831,1771683039147,-16289.45,0.00016595,2]
[406275832,1771683039156,-773.2413689,0.00016635,2]
[406275833,1771683039166,-433.0,0.00016661,2]
[406275834,1771683039175,-15708.91494095,0.0001668,2]
[406275835,1771683039187,-10650.41262681,0.0001668,2]
[406275836,1771683039196,-801.85129955,0.0001669,2]
[406275837,1771683039206,-35950.64728978,0.00016729,2]
[406275838,1771683039215,-831.51979763,0.00016745,2]
[406275839,1771683039224,-862.28603014,0.000168,2]
[406275840,1771683039234,-2000.0,0.00016816,2]
[406275841,1771683039243,-2000.0,0.00016816,2]
[406275842,1771683039253,-894.19061326,0.00016855,2]
[406275843,1771683039262,-927.27566595,0.0001691,2]
[406275844,1771683039275,-9999.99,0.00016922,2]
[406275845,1771683039284,-499.99,0.00016922,2]
[406275846,1771683039294,-299.99,0.00016922,4]
[406275847,1771683039303,-2077.18,0.00016922,2]
[406275848,1771683039312,-150.99,0.00016922,2]
[406275849,1771683039321,-9462.57573188,0.00016922,2]
[406275850,1771683039334,-537.41426812,0.00016922,2]
[406275851,1771683039344,-780.15171648,0.00016965,2]
[406275858,1771683040421,-124.20440033,0.00016965,2]
[406275859,1771683040433,-57.22874878,0.00016965,2]
[406275860,1771683040443,-276.53125122,0.00017,2]
[406275861,1771683040455,-290.47124257,0.00017,2]
[406275862,1771683040467,-332.99750621,0.00017,2]
[406275863,1771683040476,-181.08010149,0.00017018,2]
[406275864,1771683040486,-34.5879155,0.0001702,2]
[406275865,1771683040499,-585.16885174,0.0001702,2]
[406275866,1771683040511,-377.40673837,0.0001702,2]
[406275867,1771683040521,-862.61381875,0.00017086,2]
[406275868,1771683040533,-801.54783843,0.00017086,2]
[406275869,1771683040590,-24695.16591058,0.00017086,2]
[406275870,1771683040600,-35950.64728978,0.00017119,2]
[406275871,1771683040610,-587.0,0.00017197,2]
[406275872,1771683040620,-155.0,0.00017206,2]
[406275873,1771683040629,-164.94,0.00017238,2]
[406275874,1771683040639,-284.0,0.00017308,2]
[406275875,1771683040648,-500.0,0.00017349,2]
[406275876,1771683040662,-2351.0,0.00017349,2]
[406275877,1771683040671,-2500.0,0.00017364,2]
[406275878,1771683040681,-2500.0,0.00017364,2]
[406275879,1771683040691,-220.0,0.00017475,3]
[406275880,1771683040700,-26359.32756776,0.00017493,2]
[406275881,1771683040709,-341.0,0.00017497,2]
[406275882,1771683040719,-35950.64728978,0.0001751,2]
[406275883,1771683040729,-187.78006525,0.00017566,2]
[406275884,1771683040738,-1000.0,0.00017729,2]
[406275885,1771683040747,-1000.0,0.00017731,2]
[406275886,1771683040757,-150.0,0.00017733,2]
[406275887,1771683040766,-1000.0,0.00017733,2]
[406275888,1771683040775,-1000.0,0.00017737,2]
[406275889,1771683040785,-1000.0,0.0001774,2]
[406275890,1771683040794,-1000.0,0.00017742,2]
[406275891,1771683040803,-1000.0,0.00017742,2]
[406275892,1771683040813,-150.0,0.00017746,2]
[406275893,1771683040823,-150.0,0.0001775,2]
[406275894,1771683040832,-150.0,0.00017753,2]
[406275895,1771683040841,-1000.0,0.00017756,2]
[406275896,1771683040854,-1000.0,0.00017757,2]
[406275897,1771683040864,-1000.0,0.00017761,2]
[406275898,1771683040873,-150.0,0.00017763,2]
[406275899,1771683040883,-1000.0,0.00017763,2]
[406275900,1771683040892,-1000.0,0.00017765,2]
[406275901,1771683040901,-1000.0,0.00017766,2]
[406275902,1771683040910,-1000.0,0.00017767,2]
[406275903,1771683040919,-1000.0,0.00017774,2]
[406275904,1771683040929,-150.0,0.0001778,2]
[406275905,1771683040938,-1000.0,0.00017782,2]
[406275906,1771683040948,-1000.0,0.00017783,2]
[406275907,1771683040957,-1000.0,0.00017785,2]
[406275908,1771683040967,-1000.0,0.00017787,2]
[406275909,1771683040976,-1000.0,0.00017789,2]
[406275910,1771683040986,-150.0,0.0001779,2]
[406275911,1771683040995,-150.0,0.00017793,2]
[406275912,1771683041008,-1000.0,0.00017795,2]
[406275913,1771683041017,-1000.0,0.00017797,2]
[406275914,1771683041027,-1000.0,0.00017797,2]
[406275915,1771683041036,-1000.0,0.00017797,2]
[406275916,1771683041047,-150.0,0.00017798,2]
[406275917,1771683041057,-1000.0,0.00017801,2]
[406275918,1771683041067,-1000.0,0.00017801,2]
[406275919,1771683041076,-1000.0,0.00017803,2]
[406275920,1771683041086,-1000.0,0.00017806,2]
[406275921,1771683041095,-156.97959149,0.00017808,2]
[406275922,1771683041104,-991.7876198,0.00017808,2]
[406275923,1771683041113,-991.7876198,0.00017808,2]
[406275924,1771683041123,-991.7876198,0.00017808,2]
[406275925,1771683041132,-991.7876198,0.00017808,2]
[406275926,1771683041141,-991.7876198,0.00017808,2]
[406275927,1771683041150,-991.7876198,0.00017808,2]
[406275928,1771683041160,-991.7876198,0.00017808,2]
[406275929,1771683041169,-991.7876198,0.00017808,2]
[406275930,1771683041178,-991.7876198,0.00017808,2]
[406275931,1771683041188,-991.7876198,0.00017808,2]
[406275932,1771683041197,-991.7876198,0.00017808,2]
[406275933,1771683041206,-991.7876198,0.00017808,2]
[406275934,1771683041215,-991.7876198,0.00017808,2]
[406275935,1771683041224,-991.7876198,0.00017808,2]
[406275936,1771683041234,-1016.58231029,0.00017808,2]
[406275937,1771683041243,-1016.58231029,0.00017808,2]
[406275938,1771683041252,-1016.58231029,0.00017808,2]
[406275939,1771683041261,-1016.58231029,0.00017808,2]
[406275940,1771683041270,-1016.58231029,0.00017808,2]
[406275941,1771683041280,-1016.58231029,0.00017808,2]
[406275942,1771683041289,-1016.58231029,0.00017808,2]
[406275943,1771683041298,-1016.58231029,0.00017808,2]
[406275944,1771683041307,-1016.58231029,0.00017808,2]
[406275945,1771683041316,-1340.83701272,0.00017808,2]
[406275946,1771683041325,-1340.83701272,0.00017808,2]
[406275947,1771683041335,-800.0,0.00017808,2]
[406275948,1771683041344,-1000.0,0.0001781,2]
[406275949,1771683041354,-1000.0,0.00017814,2]
[406275950,1771683041363,-1000.0,0.00017818,2]
[406275951,1771683041372,-150.0,0.00017819,2]
[406275952,1771683041382,-1000.0,0.00017819,2]
[406275953,1771683041392,-1000.0,0.00017824,2]
[406275954,1771683041401,-150.0,0.00017826,2]
[406275955,1771683041411,-1000.0,0.00017828,2]
[406275956,1771683041420,-1000.0,0.0001783,2]
[406275957,1771683041430,-150.0,0.00017832,2]
[406275958,1771683041439,-1000.0,0.00017834,2]
[406275959,1771683041448,-1000.0,0.00017836,2]
[406275960,1771683041458,-1000.0,0.00017838,2]
[406275961,1771683041467,-1000.0,0.00017845,2]
[406275962,1771683041477,-1000.0,0.00017846,2]
[406275963,1771683041487,-150.0,0.00017847,2]
[406275964,1771683041496,-1000.0,0.00017855,2]
[406275965,1771683041505,-150.0,0.00017855,2]
[406275966,1771683041514,-1000.0,0.00017855,2]
[406275967,1771683041523,-150.0,0.00017856,2]
[406275968,1771683041533,-1000.0,0.0001786,2]
[406275969,1771683041543,-150.0,0.00017861,2]
[406275970,1771683041553,-150.0,0.00017863,2]
[406275971,1771683041562,-150.0,0.00017864,2]
[406275972,1771683041571,-1000.0,0.00017864,2]
[406275973,1771683041580,-215.11911998,0.00017866,2]
[406275974,1771683041590,-1000.0,0.00017866,2]
[406275975,1771683041599,-1000.0,0.00017868,2]
[406275976,1771683041609,-150.0,0.00017869,2]
[406275977,1771683041618,-150.0,0.00017873,2]
[406275978,1771683041628,-1000.0,0.00017878,2]
[406275979,1771683041639,-1000.0,0.00017878,2]
[406275980,1771683041648,-1000.0,0.00017879,2]
[406275981,1771683041657,-1000.0,0.00017881,2]
[406275982,1771683041667,-1000.0,0.00017883,2]
[406275983,1771683041676,-1000.0,0.00017883,2]
[406275984,1771683041685,-150.0,0.00017884,2]
[406275985,1771683041695,-150.0,0.00017885,2]
[406275986,1771683041704,-150.0,0.00017885,2]
[406275987,1771683041713,-1000.0,0.00017886,2]
[406275988,1771683041723,-1000.0,0.00017888,2]
[406275989,1771683041732,-150.94414865,0.00017894,2]
[406275990,1771683041741,-1000.0,0.00017894,2]
[406275991,1771683041751,-1000.0,0.00017897,2]
[406275992,1771683041762,-35950.64728978,0.000179,2]
[406275993,1771683041771,-1200.0,0.000179,6]
[406275994,1771683041780,-26359.32756776,0.000179,2]
[406275995,1771683041789,-300.0,0.000179,6]
[406275996,1771683041799,-1000.0,0.00017901,2]
[406275997,1771683041808,-1000.0,0.00017902,2]
[406275998,1771683041817,-150.0,0.00017904,2]
[406275999,1771683041826,-422.59738712,0.00017908,2]
[406276000,1771683041835,-1000.0,0.0001791,2]
[406276001,1771683041844,-831.08124477,0.00017912,2]
[406276002,1771683041853,-42.98792663,0.00017912,2]
[406276003,1771683041867,-2957.01207337,0.00017912,2]
[406276004,1771683041876,-150.0,0.00017913,2]
[406276005,1771683041886,-1000.0,0.00017914,2]
[406276006,1771683041895,-150.0,0.0001793,2]
[406276007,1771683041904,-1000.0,0.00017933,2]
[406276008,1771683041913,-1000.0,0.00017935,2]
[406276009,1771683041923,-1000.0,0.00017938,2]
[406276010,1771683041931,-1000.0,0.00017941,2]
[406276011,1771683041940,-1000.0,0.00017942,2]
[406276012,1771683041950,-150.0,0.00017944,2]
[406276013,1771683041959,-150.0,0.00017945,2]
[406276014,1771683041968,-1000.0,0.00017947,2]
[406276015,1771683041977,-150.0,0.00017948,2]
[406276016,1771683041986,-1000.0,0.00017948,2]
[406276017,1771683042001,-1000.0,0.00017948,2]
[406276018,1771683042011,-1000.0,0.00017957,2]
[406276019,1771683042020,-1000.0,0.00017959,2]
[406276020,1771683042029,-1000.0,0.00017959,2]
[406276021,1771683042039,-150.0,0.00017964,2]
[406276022,1771683042050,-736.0,0.00017965,2]
[406276023,1771683042059,-67345.49865595,0.00017967,2]
[406276024,1771683042073,-1790.99786457,0.00017967,2]
[406276025,1771683042084,-767.86334472,0.00017967,2]
[406276026,1771683042096,-904.04647458,0.00017967,2]
[406276027,1771683042107,-732.18335078,0.00017967,2]
[406276028,1771683042118,-178788.9460681,0.00017967,2]
[406276029,1771683042127,-127218.1119184,0.00017967,2]
[406276030,1771683042136,-3190.9793357,0.00017967,2]
[406276031,1771683042146,-34720.0145218,0.00017967,2]
[406276032,1771683042155,-151.0,0.00017967,2]
[406276033,1771683042164,-151.0,0.00017967,2]
[406276034,1771683042174,-1000.0,0.00017969,2]
[406276035,1771683042183,-1343.9005063,0.0001797,2]
[406276036,1771683042192,-1000.0,0.0001797,2]
[406276037,1771683042202,-1961.0,0.00017973,2]
[406276038,1771683042214,-1000.0,0.00017974,2]
[406276039,1771683042223,-150.0,0.00017982,2]
[406276040,1771683042232,-150.0,0.00017989,2]
[406276041,1771683042242,-413.71550616,0.0001799,2]
[406276042,1771683042251,-361.32669013,0.0001799,2]
[406276043,1771683042260,-1000.0,0.00017993,2]
[406276044,1771683042269,-150.0,0.00017994,2]
[406276045,1771683042279,-1000.0,0.00017996,2]
[406276046,1771683042288,-352.10495522,0.00017999,2]
[406276047,1771683042297,-666.0,0.00017999,2]
[406276048,1771683042306,-300.0,0.00017999,2]
[406276049,1771683042315,-666.0,0.00017999,2]
[406276050,1771683042324,-296.63098615,0.00017999,2]
[406276051,1771683042334,-483937.60758037,0.00018,2]
[406276052,1771683042346,-51664.32483519,0.00018,2]
[406276053,1771683042396,5831.27313353,0.00014239,2]
[406276054,1771683042422,406.45040173,0.00014239,2]
[406276080,1771683044694,-1339022.82004762,0.00018,2]
[406276081,1771683044971,-5925.17496377,0.00018,2]
[406276082,1771683045143,-697.17968,0.00018,2]
[406276083,1771683045155,-555.870015,0.00018,2]
[406276085,1771683045494,-356.0,0.00018,2]
[406276093,1771683046615,-33000.0,0.00018,2]
[406276094,1771683046626,-474.209881,0.00018,2]
[406276095,1771683046638,-39737.31843814,0.00018,2]
[406276096,1771683046649,-2703.97172834,0.00018,2]
[406276097,1771683046660,-725.91928473,0.00018,2]
[406276098,1771683052816,3998.0,0.000143,3]
[406276099,1771683068172,187.0,0.00014489,2]
[406276100,1771683074990,151.0,0.00014489,2]
[406276101,1771683082319,500.0,0.00013954,2]
[406276102,1771683084117,5531.0,0.000144,5]
[406276103,1771683088427,3631.01,0.00014239,2]
[406276104,1771683088449,10000.01,0.00014239,2]
[406276105,1771683088471,10000.01,0.00014239,2]
[406276106,1771683088494,7852.7167,0.00014239,2]
[406276107,1771683121450,300.0,0.00014238,2]
[406276108,1771683121612,300.0,0.00014238,2]
[406276109,1771683121753,150.0,0.00014238,2]
[406276110,1771683135056,500.0,0.00014,2]
[406276111,1771683135442,500.0,0.00014,2]
[406276112,1771683135555,500.0,0.00014,2]
[406276113,1771683136036,500.0,0.0001,2]
[406276114,1771683136314,500.0,0.00014,2]
[406276115,1771683136636,900.0,0.0001,2]
[406276116,1771683136772,500.0,0.00014,2]
[406276117,1771683137923,500.0,0.00014,2]
[406276118,1771683138432,500.0,0.00014,2]
[406276119,1771683138943,500.0,0.0001,2]
[406276120,1771683139424,500.0,0.0001,2]
[406276121,1771683139768,400.01,0.00014,2]
[406276122,1771683140004,500.0,0.0001,2]
[406276123,1771683140221,500.0,0.00014,2]
[406276124,1771683140487,500.0,0.00014,2]
[406276125,1771683140719,500.0,0.00014,2]
[406276126,1771683141234,500.0,0.0001,2]
[406276127,1771683142125,450.0,0.00014,2]
[406276128,1771683142149,50.0,0.00014,2]
[406276129,1771683142181,500.0,0.00014,2]
[406276130,1771683142762,500.0,0.00014,2]
[406276131,1771683143251,500.0,0.0001,2]
[406276132,1771683143964,500.0,0.0001,2]
[406276133,1771683144502,500.0,0.00014,2]
[406276134,1771683145006,500.0,0.00014,2]
[406276135,1771683145534,500.0,0.00014,2]
[406276136,1771683145822,400.0,0.000136,4]
[406276137,1771683146017,500.0,0.00014,2]
[406276138,1771683146502,500.0,0.0001,2]
[406276139,1771683146786,500.01,0.00014,2]
[406276140,1771683146990,500.0,0.0001,2]
[406276141,1771683147476,500.0,0.0001,2]
[406276142,1771683147615,500.0,0.00014,2]
[406276143,1771683147912,800.0,0.000137,5]
[406276144,1771683147953,955.61910008,0.0001,2]
[406276145,1771683148083,500.0,0.0001,2]
[406276146,1771683148742,544.41089992,0.00014,2]
[406276147,1771683150008,249.97,0.00014,2]
[406276148,1771683150033,250.03,0.00014,2]
[406276149,1771683150061,1300.0,0.000138,5]
[406276150,1771683150606,500.0,0.00014,2]
[406276151,1771683151119,500.0,0.0001,2]
[406276152,1771683152108,1700.0,0.000139,5]
[406276153,1771683157740,-98000.0,0.00014239,2]
[406276154,1771683161808,5617.43235684,0.00014139,2]
[406276155,1771683181273,132.54764316,0.00014238,2]
[406276156,1771683181296,167.45235684,0.00014238,2]
[406276157,1771683193175,-188.0,0.00014239,2]
[406276158,1771683194207,-5142.71922913,0.00014239,2]
[406276159,1771683194330,-10000.01,0.00014239,2]
[406276160,1771683195713,-151.0,0.00014239,2]
[406276161,1771683195759,-9698.01,0.00014239,2]
[406276162,1771683195773,-10000.01,0.00014239,2]
[406276163,1771683195853,-10000.01,0.00014239,2]
[406276164,1771683196169,-500.0,0.00014238,2]
[406276165,1771683196198,-179.92156125,0.00014238,2]
[406276166,1771683196225,-216.38402672,0.00014238,2]
[406276167,1771683196451,-500.0,0.00014238,2]
[406276168,1771683196460,-500.0,0.00014238,2]
[406276169,1771683196469,-7207.39882406,0.00014239,2]
[406276170,1771683196612,-512.9513174,0.00014238,2]
[406276171,1771683196862,-500.0,0.00014238,2]
[406276172,1771683196923,-8474.1073652,0.00014239,2]
[406276173,1771683196971,-10000.01,0.00014239,2]
[406276174,1771683197001,-500.0,0.00014239,2]
[406276175,1771683197020,-9000.01,0.00014239,2]
[406276176,1771683197052,-10000.01,0.00014239,2]
[406276177,1771683201596,-10000.01,0.00014239,2]
[406276178,1771683201709,-10000.01,0.00014239,2]
[406276179,1771683201845,-10000.01,0.00014239,2]
[406276180,1771683201971,-10000.01,0.00014239,2]
[406276181,1771683202106,-10000.01,0.00014239,2]
[406276182,1771683202392,-10000.01,0.00014239,2]
[406276183,1771683202427,-10000.01,0.00014239,2]
[406276184,1771683202440,-10000.01,0.00014239,2]
[406276185,1771683202550,-10000.01,0.00014239,2]
[406276186,1771683209400,200.0,0.000136,4]
[406276187,1771683211508,500.0,0.000137,5]
[406276188,1771683213593,800.0,0.000138,5]
[406276189,1771683215692,1000.0,0.000139,5]
[406276190,1771683256387,327.407725,0.00013831,2]
[406276192,1771683304729,162.312567,0.00013526,2]
[406276193,1771683442375,500.0,0.0001,2]
[406276194,1771683442951,500.0,0.0001,2]
[406276195,1771683443428,422.13455341,0.0001,2]
[406276196,1771683443452,568.63133225,0.0001,2]
[406276197,1771683447417,600.0,0.0001,2]
[406276198,1771683447900,600.0,0.0001,2]
[406276199,1771683448398,600.0,0.0001,2]
[406276200,1771683448908,600.0,0.0001,2]
[406276201,1771683449155,500.0,0.0001,2]
[406276202,1771683449398,600.0,0.0001,2]
[406276203,1771683450016,600.0,0.0001,2]
[406276204,1771683450681,600.0,0.0001,2]
[406276205,1771683451001,600.0,0.0001,2]
[406276206,1771683451507,600.0,0.0001,2]
[406276207,1771683451987,600.0,0.0001,2]
[406276208,1771683452209,500.0,0.0001,2]
[406276209,1771683452460,600.0,0.0001,2]
[406276210,1771683452707,500.0,0.0001,2]
[406276211,1771683452963,600.0,0.0001,2]
[406276212,1771683453468,731.37866775,0.0001,2]
[406276213,1771683453493,181.29678407,0.0001,2]